Cogmind - Beta 15 @@@ ROGUE MODE // 2025.10.10 @ 15:39:44 Player: opdo Result: Destroyed by as-67988 with Assembled Heavy Rifle Performance ------------- Evolutions (0) 0 Regions Visited (2) 400 Robots Destroyed (5) 25 Value Destroyed (138) 138 Prototype IDs (0) 0 Alien Tech Used (0) 0 Bonus (0) 0 TOTAL SCORE: 563 Bonus ------- None Cogmind --------- Core Integrity 0/250 Matter 238/300 Energy 100/100 System Corruption 2% Temperature Cool (0) Movement Core (100) Ox1 Location -10/Mines Parts ------- > --- POWER (1) -------- (None) > --- PROPULSION (2) --- (None) > --- UTILITY (2) ------ Small Storage Unit Structural Scanner > --- WEAPON (2) ------- (None) > --- INVENTORY (8) ---- Light Ion Engine Aluminum Leg Targeting Computer Weapon Shielding Assault Rifle Light Cannon Light Cannon Mining Laser Peak State ------------ > --- POWER ------------ Light Ion Engine > --- PROPULSION ------- Light Treads Light Treads > --- UTILITY ---------- Small Storage Unit Improved Terrain Scanner > --- WEAPON ----------- Assault Rifle Light Assault Rifle > --- INVENTORY -------- Light Ion Engine Aluminum Leg Aluminum Leg Assault Rifle [Rating: 9] Favorites ----------- Power Light Ion Engine Engine Light Ion Engine Power Core Light Nuclear Core Propulsion Light Treads Treads Light Treads Utility Small Storage Unit Device Structural Scanner Storage Small Storage Unit Weapon Assault Rifle Ballistic Gun Assault Rifle Launcher Mini Grenade Launcher Build | -11 -10 -10 ------- Run | Yrd Mat Min Slots Evolved . | . . . Power . | . . . Propulsion . | . . . Utility . | . . . Weapon . | . . . Parts Attached 10 | 7 2 1 Power 2 | 1 1 . Engine 1 | 1 . . Core 1 | . 1 . Reactor . | . . . Propulsion 2 | 2 . . Treads 2 | 2 . . Leg . | . . . Wheel . | . . . Hover . | . . . Flight . | . . . Utility 3 | 2 1 . Device 2 | 1 1 . Storage 1 | 1 . . Processor . | . . . Hackware . | . . . Protection . | . . . Artifact . | . . . Weapon 3 | 2 . 1 Energy Gun . | . . . Energy Cannon . | . . . Ballistic Gun 2 | 2 . . Ballistic Cannon . | . . . Launcher 1 | . . 1 Special Weapon . | . . . Impact Weapon . | . . . Slashing Weapon . | . . . Piercing Weapon . | . . . Special Melee Weapon . | . . . Unidentified Prototypes . | . . . Parts Lost 5 | . . 5 Power 1 | . . 1 Propulsion 2 | . . 2 Utility . | . . . Weapon 2 | . . 2 Highest Loss Streak 5 | . . 5 To Critical Strikes . | . . . Average Backups 6 | 2 7 8 Power . | . 1 1 Propulsion 1 | 1 1 1 Utility 1 | . 1 2 Weapon 3 | . 3 4 Tool/Special . | . . . Unused Backups 10 | . 2 8 Power 1 | . . 1 Propulsion 2 | . 1 1 Utility 3 | . 1 2 Weapon 4 | . . 4 Tool/Special . | . . . Average Slot Usage (%) 99 | . 100 95 Engine 10 | . 12 . Core 2 | . 1 12 Treads 27 | . 28 25 Device 14 | . 14 14 Storage 14 | . 14 14 Ballistic Gun 27 | . 28 25 Peak Build Rating 9 | 9 9 9 Average Rating 7 | 5 7 8 On Entrance 6 | . 9 9 Naked Turns . | . . . Heaviest Build 14 | 12 14 14 Greatest Support 40 | 40 40 40 Greatest Overweight (x) . | . . . Average Overweight (x) . | . . . Largest Inventory Capacity 8 | 8 8 8 Average Capacity 7 | 7 8 8 Most Carried 8 | 4 8 8 Average Carried 7 | 2 7 8 Final Capacity 8 | 8 8 8 Final Carried 8 | 4 8 8 Class Distribution -------------------- 100% | Mutant Dominant Class ---------------- Mutant | -10/Materials Mutant | -10/Mines Resources | -11 -10 -10 ----------- Run | Yrd Mat Min Matter Collected 446 | 282 142 22 Remotely . | . . . Salvage Created 225 | 25 142 58 Parts 10 | 1 9 . Haulers Intercepted . | . . . Recyclers Shooed 1 | 1 . . Parts Field Recycled . | . . . Retrieved Matter . | . . . Parts Self-Destructed . | . . . Prevented . | . . . Kills | -11 -10 -10 ------- Run | Yrd Mat Min Combat Hostiles Destroyed 13 | . 3 10 Guns 7 | . 3 4 AOE 6 | . . 6 Classes Destroyed 4 | 1 2 1 Tunneler 1 | 1 . . Watcher 1 | . 1 . Grunt 3 | . 3 . Assembled 10 | . . 10 Best Kill Streak 10 | 1 1 10 Combat Bots Only 10 | . 1 10 Max Kills in Single Turn 2 | 1 1 2 Gunslinging 1 | . . 1 Exploded 2 | . . 2 Melee . | . . . Uniques/NPCs Destroyed . | . . . Combat | -11 -10 -10 -------- Run | Yrd Mat Min Hostile Shots Fired 75 | . 26 49 Missed 18 | . 7 11 Hits 57 | . 19 38 Melee 3 | . . 3 Projectile 54 | . 19 35 Critical Strikes 2 | . 1 1 Part Disruptions 1 | . . 1 Damage Taken 838 | . 243 595 Core 250 | . 30 220 Absorbed by Shields . | . . . Core Remaining (%) 100 | 100 . . Volleys Fired 52 | 3 33 16 Largest 2 | 2 2 2 Hottest 50 | 40 40 50 Shots Fired 101 | 6 66 29 Gun 97 | 6 66 25 Cannon . | . . . Launcher 4 | . . 4 Special . | . . . Kinetic 97 | 6 66 25 Thermal . | . . . Explosive 4 | . . 4 Electromagnetic . | . . . Robot Hit Streak 7 | 3 7 5 Robot Miss Streak 4 | 1 4 2 Penetration Max . | . . . Secondary Targets 2 | . . 2 Max Gunslinging Chain 1 | . . 1 Shots Hit Robots 62 | 4 38 20 Core Hits 32 | 2 9 21 Critical Kills . | . . . Critical Parts Destroyed . | . . . Critical Strikes . | . . . Melee Attacks . | . . . Impact . | . . . Slashing . | . . . Piercing . | . . . Sneak Attacks . | . . . Combat Hostiles . | . . . Follow-up Attacks . | . . . Damage Inflicted 1113 | 50 415 648 Guns 643 | 47 415 181 Cannons . | . . . Explosions 467 | . . 467 Melee . | . . . Ramming 3 | 3 . . Kinetic 643 | 47 415 181 Thermal . | . . . Explosive 467 | . . 467 Electromagnetic . | . . . Impact . | . . . Slashing . | . . . Piercing . | . . . Highest Corruption 2 | . . 2 Average Corruption 2 | . . 2 Corruption Purged . | . . . Corruption Blocked . | . . . Overload Shots . | . . . Overflow Damage 14 | . . 14 Projectiles . | . . . Explosions 14 | . . 14 Melee . | . . . Knockbacks . | . . . Impact . | . . . Kinetic . | . . . Secondary . | . . . Self-Inflicted Damage 81 | . . 81 Shots 3 | . . 3 Rammed 2 | 1 1 . Targets Rammed 2 | 1 1 . Kicked . | . . . Crushed . | . . . Highest Temperature 27 | . 27 14 Average Temperature 8 | . 10 6 Received Heat Transfer 281 | . 141 140 Siege Activations . | . . . Martial Activations . | . . . Shielding Activations . | . . . Robots Disrupted . | . . . Combat Hostiles . | . . . Robots Corrupted . | . . . Combat Hostiles . | . . . Parts Fried . | . . . Impact Corruptions . | . . . Robots Melted . | . . . Combat Hostiles . | . . . Parts Melted . | . . . Heat Transferred . | . . . Parts Sabotaged . | . . . Parts Stolen . | . . . Parts Stripped . | . . . Power Chain Reactions . | . . . Alert | -11 -10 -10 ------- Run | Yrd Mat Min Maximum Alert Level . | . . . Low Security (%) 100 | 100 100 100 Level 1 . | . . . Level 2 . | . . . Level 3 . | . . . Level 4 . | . . . Level 5 . | . . . High Security . | . . . Max Security . | . . . Peak Influence 34 | 5 34 3 Initial 3 | . . 3 Average 3 | . 4 . Influence Increases 148 | 5 136 7 Destroy 0b10 Robot/C 60 | . 60 . Destroy 0b10 Robot/NC 10 | 5 5 . Destroy Leader 12 | . 12 . Successful Hack 44 | . 44 . Destroy Structure 7 | . . 7 Lose Combat Pursuer 15 | . 15 . Influence Decreases 147 | 5 128 14 Entered New Map 5 | . . 5 Time Decay 136 | 5 128 3 Lost Part 6 | . . 6 Squads Dispatched . | . . . Investigation . | . . . Extermination . | . . . Reinforcement . | . . . Assault . | . . . Garrison . | . . . Intercept . | . . . Searches Triggered . | . . . Construction Impeded . | . . . Haulers Reinforced . | . . . Active Scanning Responses . | . . . Cargo Convoy Interrupts . | . . . Stealth | -11 -10 -10 --------- Run | Yrd Mat Min Distress Signals 2 | . 2 . Communications Jammed . | . . . Distress Signals . | . . . Times Spotted 27 | . 11 16 Peak Tracking Total 10 | . 4 10 Tactical Retreats 3 | . 1 2 Traps | -11 -10 -10 ------- Run | Yrd Mat Min Traps Triggered 1 | . 1 . Indirectly . | . . . Trap Hack Attempts . | . . . Triggered . | . . . Disarmed . | . . . Reprogrammed . | . . . Reused . | . . . Traps Extracted . | . . . Installed . | . . . Triggered . | . . . Machines | -11 -10 -10 ---------- Run | Yrd Mat Min Machines Disabled . | . . . Max in Single Turn . | . . . Machines Repaired . | . . . Machines Dismantled . | . . . Machines Sabotaged . | . . . Overloaded Fab Kills . | . . . Hacking | -11 -10 -10 --------- Run | Yrd Mat Min Machines Accessed 8 | . 8 . Terminals 8 | . 8 . Fabricators . | . . . Repair Stations . | . . . Recycling Units . | . . . Scanalyzers . | . . . Garrison Access . | . . . Total Hacks 37 | . 37 . Successful 28 | . 28 . Failed 9 | . 9 . Catastrophic . | . . . Database Lockouts . | . . . Manual 20 | . 20 . Terminals 37 | . 37 . Fabricators . | . . . Repair Stations . | . . . Recycling Units . | . . . Scanalyzers . | . . . Garrison Access . | . . . Terminal Hacks 18 | . 18 . Record 5 | . 5 . Robot Analysis 3 | . 3 . Terminal Index 1 | . 1 . Alert Level 5 | . 5 . Maintenance Status 2 | . 2 . Investigation Status 1 | . 1 . Zone Layout 1 | . 1 . Fabricator Hacks . | . . . Repair Station Hacks . | . . . Recycling Unit Hacks . | . . . Scanalyzer . | . . . Garrison Access Hacks . | . . . Unauthorized Hacks 10 | . 10 . Terminals 10 | . 10 . Botnet 1 | . 1 . Operators 1 | . 1 . Skim 8 | . 8 . Fabricators . | . . . Repair Stations . | . . . Recycling Units . | . . . Scanalyzers . | . . . Garrison Access . | . . . Data Cores Recovered . | . . . Used . | . . . Hacking Detections 7 | . 7 . Full Trace Events . | . . . Feedback Events . | . . . Feedback Blocked . | . . . Robot Schematics Acquired . | . . . Robots Built . | . . . Authchips . | . . . Time . | . . . Total Robot Build Rating . | . . . Part Schematics Acquired . | . . . Parts Built . | . . . Authchips . | . . . Time . | . . . Total Part Build Rating . | . . . Parts Repaired . | . . . Time . | . . . Parts Recycled . | . . . Recycled Matter . | . . . Retrieved Matter . | . . . Retrieved Components . | . . . Parts Scanalyzed . | . . . Part Schematics Acquired . | . . . Parts Damaged . | . . . Bothacking | -11 -10 -10 ------------ Run | Yrd Mat Min Used RIF Installer . | . . . Robots Hacked . | . . . Non-combat . | . . . Combat . | . . . Robot Hacks Applied . | . . . Relay Couplers Released . | . . . Fabnet Peak Effective % . | . . . Robots Rewired . | . . . Allies Hacked . | . . . Hacks Repelled . | . . . Allies | -11 -10 -10 -------- Run | Yrd Mat Min Total Allies 2 | . . 2 Largest Group 2 | . . 2 Highest-Rated Group 50 | . . 50 Highest-Rated Ally 31 | . . 31 Total Orders . | . . . Ally Attacks 5 | . . 5 Total Damage 84 | . . 84 Kills 2 | . . 2 Allies Corrupted . | . . . Allies Melted . | . . . Intel | -11 -10 -10 ------- Run | Yrd Mat Min Active Infowar (turns) 1004 | 21 858 125 Terrain 230 | 21 209 . Structural 774 | . 649 125 Robot Analysis Total 3 | . 3 . Derelict Logs Recovered . | . . . Drone Launches . | . . . Drone Recoveries . | . . . Exploration | -11 -10 -10 ------------- Run | Yrd Mat Min Turns Passed 1085 | 102 858 125 Spaces Moved 567 | 51 465 51 Core 3 | 3 . . Treads 564 | 48 465 51 Legs . | . . . Wheels . | . . . Hover . | . . . Flight . | . . . Fastest Speed 50 | 50 160 160 Average Speed 159 | 153 160 160 Slowest Speed 160 | 160 160 160 Overloaded Moves . | . . . Propulsion Burnouts . | . . . Robots Hopped . | . . . Potential Cave-ins . | . . . Cave-ins Triggered . | . . . Exploration Rate (%) 33 | 4 80 17 Regions Visited 2 Branch Regions 1 Pre-discovered Areas . | . . . Known Exits Taken . | . . . Unknown Exits Taken 2 | 1 1 . Scrap Searched . | . . . Spaces Dug . | . . . Terrain Destroyed 22 | . . 22 Melee . | . . . Projectile . | . . . AOE 22 | . . 22 Terrain Rammed . | . . . Walls Destroyed . | . . . Machines Disabled . | . . . Actions | -11 -10 -10 --------- Run | Yrd Mat Min Total 653 | 65 520 68 Wait 11 | . 11 . Move 566 | 51 464 51 Hop . | . . . Pick Up 10 | 4 6 . Fast Attach 7 | 7 . . Attach . | . . . Detach . | . . . Swap 3 | . 2 1 Drop 3 | . 3 . Fire 52 | 3 33 16 Melee . | . . . Ram . | . . . Kick . | . . . Crush 1 | . 1 . Escape Stasis . | . . . Rewire . | . . . Trap . | . . . Miscellaneous . | . . . Route ------- -11/Scrapyard -10/Materials (discovered 6 exits: [*Mat x3] / [*Min x2] / [*Sub]) -10/Mines (discovered 1 exit: [*Mat]) History --------- Turn | Location | Event 4 | -11/Scrapyard | Discovered new exit (range 16) 103 | -11/Scrapyard | Entered Materials 183 | -10/Materials | Discovered new exit (range 15) 185 | -10/Materials | Discovered new exit (range 14) 301 | -10/Materials | Build established: Mutant 394 | -10/Materials | Discovered new exit (range 3) 462 | -10/Materials | Discovered new exit (range 10) 507 | -10/Materials | Discovered new exit (range 3) 625 | -10/Materials | Learned Storage emergency access door positions 639 | -10/Materials | Discovered new exit (range 5) 652 | -10/Materials | Learned location of 1 exit from Recycling 675 | -10/Materials | Learned Storage non-interactive machine intel 676 | -10/Materials | Learned Storage terminal intel 677 | -10/Materials | Learned 4 Subcaves zone layouts 678 | -10/Materials | Learned Storage security intel 698 | -10/Materials | Learned 4 Subcaves zone layouts 961 | -10/Materials | Entered Mines 974 | -10/Mines | Assembled infested the area 979 | -10/Mines | Assisted by a Guerilla fighting off Assembled 1078 | -10/Mines | Discovered new exit (range 10) 1079 | -10/Mines | Core integrity fell below 50% 1085 | -10/Mines | Core integrity fell below 20% 1086 | -10/Mines | Destroyed by as-67988 with Assembled Heavy Rifle Last Messages --------------- 01075_ HW-PS4(z) destroyed. 01077_ Acquired Mni. Grenade Launcher. 01078_ Lgt. Treads destroyed. 01078_ as-17358 destroyed. 01078_ EXIT=FOUND 01078_ Destroyed Asb. Hover Unit. 01078_ Lgt. Treads destroyed. 01078_ Assault Rifle destroyed. 01078_ System corrupted by crushing effect (+2). 01078_ Knocked back. 01081_ as-71546 destroyed. 01081_ as-40793 destroyed. 01083_ The unstable cave ceiling collapses. 01083_ 14 Matter crushed. 01083_ as-40303 destroyed. 01085_ as-91655 destroyed. 01085_ as-23515 destroyed. 01085_ Mni. Grenade Launcher destroyed. 01085_ Destroyed Mni. Grenade Launcher. 01086_ The unstable cave ceiling collapses. Map ----- +----------------------------------------------------+ | ????????????????????????????????????????????? | | ????????????????????????????????????????????? | | ???????????????????????????????????#######??? | | ???????????????????????##########??#######??? | | ???????????????????????############ ##??? | | ???????????????????????## #### """##??? | | ???????????????????????## """##??? | | ???????????????????????## ## # """##??? | | ???????????????????????## ## # ##??? | | ???????????????????????## ## ########??? | | ???????????????????????## ## ########??? | | ???????????????## ######## ###### ##????????? | | ???????????????## ######## ###### ##????????? | | ???????????????## ##??## ##????????? | | ????????????############## ###?## ##????????? | | ??????????? ######## ##*# ###### ##????????? | | ???????????? #= ##### ##????????? | | ???????????? ## ##????????? | | ????????????????## ## # #########????????? | | ????????????????## %%% ############??????? | | ????????????????## ### #####??????? | | ????????????????### # * # ####????? | | ????????????????### # = ####????? | | ??????????????????## # = ##????? | | ??????????????????###### % a ##????? | | ??????????????????###### @ #!%# ##????? | | ??????????????????????## # ##????? | | ??????????????????????## a ##???? | | ??????????????????????## a ! * ##???? | | ??????????????????????####### %=%!###???? | | ??????????????????????######## ! ###???? | | ????????????????????????????# / #????? | | ??????????????????????????????? ?????? | | ???????????????????????????????## ## ?????? | | ???????????????????????????????###### ??????? | | ????????????????????????????????####????????? | | ????????????????????????????????????????????? | | ????????????????????????????????????????????? | | ????????????????????????????????????????????? | | ????????????????????????????????????????????? | | ????????????????????????????????????????????? | | ????????????????????????????????????????????? | | ????????????????????????????????????????????? | | ????????????????????????????????????????????? | | ????????????????????????????????????????????? | | ????????????????????????????????????????????? | | ????????????????????????????????????????????? | | ????????????????????????????????????????????? | | ????????????????????????????????????????????? | | ????????????????????????????????????????????? | +----------------------------------------------------+ Best States ------------- Heat Dissipation 25 Energy Generation 14 Energy Capacity 160 Matter Stores 300 Matter Capacity 300 Sight Range 16 Terrain Scan Range 16 Terrain Scan Density 10 Evasion (%) 40 Recoil Reduction 2 Item Schematics ----------------- None Robot Schematics ------------------ None Fabricated ------------ Nothing Repaired ---------- Nothing Alien Tech Used ----------------- None Achievements -------------- None Challenges ------------ None Game ------ Seed HardlightCargoNanovents Manual? 0 Play Time 00:08:18 Cumulative 104.9 hours Start 2025.10.10 @ 15:31:40 End 2025.10.10 @ 15:39:44 Sessions 1 Manual Loads 0 Difficulty Rogue Special Mode None Game No. 283 Rogue 281 Adventurer 2 Explorer 0 Win Type - Total 1 Types 1/0/0/0/0/0/0/0/0/0 Lore% 76 Gallery% 60 Achievement% 51 Wizard Run 0 Options --------- Layout 2 ASCII 0 Keyboard 0 Movement Numpad Keybinds 0 Fullscreen 2 Font 24/Smallcaps Map View 50x44 Zoom Use 0% Tactical HUD 1 Map Filters NONE Filters NONE Steam 1 RUN: 7e335a8b-e21e-4c30-8f97-86adfaa0f1c2